fUSD/lending_fUSD_20250415
["ID","MTS","AMOUNT","RATE_DAILY","PERIOD"]
[358132582,1744758049521,-500.0,0.00049999,50]
[358132583,1744758049547,-500.0,0.00049999,50]
[358132584,1744758049574,-500.0,0.00049999,50]
[358132585,1744758049600,-575.0,0.00049999,50]
[358132586,1744758049627,-150.07734728,0.00049999,50]
[358132587,1744758049658,-582348.67501563,0.0005,120]
[358132588,1744758049685,-2035.31,0.0005,120]
[358132589,1744758049710,-1620.22714139,0.0005,30]
[358132590,1744758049735,-970.97459783,0.0005,120]
[358132591,1744758049763,-1000000.0,0.0005,120]
[358132592,1744758049788,-3399332.8392394,0.0005,120]
[358132593,1744758060478,250.0,0.00017,2]
[358133057,1744758086286,-500.0,0.00046164,120]
[358133059,1744758086313,-500.0,0.00046164,120]
[358133061,1744758086342,-500.0,0.00046164,120]
[358133062,1744758086374,-500.0,0.00046438,120]
[358133064,1744758086403,-500.0,0.00046712,120]
[358133066,1744758086430,-500.0,0.00046712,120]
[358133067,1744758086457,-500.0,0.00046712,120]
[358133069,1744758086484,-500.0,0.00046986,120]
[358133071,1744758086511,-500.0,0.0004726,120]
[358133072,1744758086539,-152.69344312,0.0004726,120]
[358133074,1744758086565,-500.0,0.00047808,120]
[358133076,1744758086591,-500.0,0.00048356,120]
[358133077,1744758086617,-311.37026775,0.00048904,120]
[358133079,1744758086644,-150.1,0.0004975,30]
[358133080,1744758086670,-150.1,0.00049887,30]
[358133082,1744758086699,-420731.33239848,0.0005,120]
[358133084,1744758086726,-151.0,0.0005,105]
[358133085,1744758086752,-2760.40394695,0.0005,120]
[358133087,1744758086778,-2006.0,0.0005,120]
[358133089,1744758086803,-150.0,0.0005001,30]
[358133090,1744758086828,-150.1,0.00050024,30]
[358133092,1744758086854,-305.77080733,0.0005003,30]
[358133094,1744758086879,-214.54507832,0.0005003,30]
[358133095,1744758086906,-150.0,0.00050069,30]
[358133097,1744758086946,-150.0,0.00050072,30]
[358133099,1744758086975,-150.0,0.00050072,30]
[358133100,1744758087003,-305.77080733,0.00050086,30]
[358133102,1744758087032,-214.54507832,0.00050086,30]
[358133104,1744758087059,-150.0,0.00050127,30]
[358133106,1744758087087,-1124.75,0.00050136,120]
[358133107,1744758087115,-500.0,0.00050136,120]
[358133109,1744758087143,-305.77080733,0.00050141,30]
[358133111,1744758087170,-214.54507832,0.00050141,30]
[358133112,1744758087197,-150.0,0.00050148,30]
[358133113,1744758087223,-150.34720567,0.00050161,30]
[358133114,1744758087250,-150.0,0.00050185,30]
[358133115,1744758087276,-305.77080733,0.00050196,30]
[358133116,1744758087304,-214.54507832,0.00050196,30]
[358133117,1744758087333,-150.0,0.00050224,30]
[358133118,1744758087361,-150.0,0.00050224,30]
[358133120,1744758087390,-150.0,0.00050244,30]
[358133121,1744758087419,-305.77080733,0.00050252,30]
[358133123,1744758087447,-214.54507832,0.00050252,30]
[358133125,1744758087475,-150.0,0.00050269,120]
[358133126,1744758087505,-150.0,0.000503,30]
[358133128,1744758087533,-150.0,0.00050302,30]
[358133130,1744758087561,-305.77080733,0.00050307,30]
[358133131,1744758087588,-214.54507832,0.00050307,30]
[358133133,1744758087615,-150.0,0.0005036,30]
[358133135,1744758087642,-305.77080733,0.00050363,30]
[358133136,1744758087669,-214.54507832,0.00050363,30]
[358133138,1744758087697,-150.0,0.00050376,30]
[358133140,1744758087724,-150.0,0.00050376,30]
[358133141,1744758087753,-150.0,0.00050379,120]
[358133143,1744758087783,-1124.75,0.0005041,120]
[358133145,1744758087812,-500.0,0.0005041,120]
[358133147,1744758087839,-305.77080733,0.00050418,30]
[358133148,1744758087868,-214.54507832,0.00050418,30]
[358133150,1744758087896,-150.0,0.00050418,30]
[358133152,1744758087924,-3000.0,0.0005044,31]
[358133153,1744758087952,-150.0,0.00050452,30]
[358133155,1744758087981,-305.77080733,0.00050473,30]
[358133156,1744758088008,-214.54507832,0.00050473,30]
[358133158,1744758088035,-150.0,0.00050477,30]
[358133160,1744758088063,-727.44880567,0.000505,120]
[358133161,1744758088090,-305.77080733,0.00050529,30]
[358133163,1744758088117,-214.54507832,0.00050529,30]
[358133164,1744758088144,-150.0,0.00050529,30]
[358133166,1744758088171,-150.0,0.00050529,30]
[358133168,1744758088198,-150.0,0.00050535,30]
[358133169,1744758088224,-305.77080733,0.00050584,30]
[358133171,1744758088252,-214.54507832,0.00050584,30]
[358133173,1744758088280,-150.0,0.00050593,30]
[358133174,1744758088307,-223.04915,0.000506,120]
[358133176,1744758088336,-150.0,0.00050605,30]
[358133178,1744758088363,-305.77080733,0.00050639,30]
[358133179,1744758088391,-214.54507832,0.00050639,30]
[358133181,1744758088419,-150.0,0.00050652,30]
[358133187,1744758088635,-150.0,0.00050681,30]
[358133189,1744758088661,-150.0,0.00050681,30]
[358133191,1744758088688,-1124.75,0.00050684,120]
[358133192,1744758088715,-500.0,0.00050684,120]
[358133194,1744758088741,-832.14856648,0.00050684,120]
[358133196,1744758088768,-305.77080733,0.00050695,30]
[358133197,1744758088796,-214.54507832,0.00050695,30]
[358133199,1744758088823,-150.0,0.0005071,30]
[358133201,1744758088850,-305.77080733,0.0005075,30]
[358133202,1744758088877,-214.54507832,0.0005075,30]
[358133204,1744758088905,-150.0,0.00050757,30]
[358133206,1744758088938,-150.0,0.00050768,30]
[358133207,1744758088966,-150.0,0.00050772,120]
[358133209,1744758088994,-150.0,0.00050803,120]
[358133211,1744758089021,-305.77080733,0.00050805,30]
[358133212,1744758089049,-214.54507832,0.00050805,30]
[358133214,1744758089075,-150.0,0.00050826,30]
[358133216,1744758089103,-246.0,0.00050829,60]
[358133217,1744758089130,-246.0,0.00050829,60]
[358133219,1744758089158,-246.0,0.00050829,60]
[358133221,1744758089185,-246.0,0.00050829,60]
[358133222,1744758089211,-246.0,0.00050829,60]
[358133224,1744758089238,-246.0,0.00050829,60]
[358133225,1744758089265,-246.0,0.00050829,60]
[358133227,1744758089291,-246.0,0.00050829,60]
[358133229,1744758089318,-246.0,0.00050829,60]
[358133230,1744758089348,-246.0,0.00050829,60]
[358133232,1744758089375,-246.0,0.00050829,60]
[358133234,1744758089401,-246.0,0.00050829,60]
[358133235,1744758089430,-150.0,0.00050833,30]
[358133237,1744758089455,-150.0,0.00050833,30]
[358133239,1744758089482,-326.0,0.00050834,60]
[358133241,1744758089511,-326.0,0.00050834,60]
[358133242,1744758089537,-326.0,0.00050834,60]
[358133244,1744758089564,-326.0,0.00050834,60]
[358133246,1744758089591,-326.0,0.00050834,60]
[358133247,1744758089618,-326.0,0.00050834,60]
[358133249,1744758089644,-326.0,0.00050834,60]
[358133250,1744758089670,-326.0,0.00050834,60]
[358133252,1744758089697,-326.0,0.00050834,60]
[358133254,1744758089724,-326.0,0.00050834,60]
[358133255,1744758089750,-326.0,0.00050834,60]
[358133257,1744758089776,-326.0,0.00050834,60]
[358133259,1744758089804,-338.0,0.00050848,120]
[358133261,1744758089830,-343.0,0.00050848,120]
[358133262,1744758089856,-246.0,0.00050852,60]
[358133264,1744758089882,-246.0,0.00050852,60]
[358133265,1744758089910,-246.0,0.00050852,60]
[358133267,1744758089938,-246.0,0.00050852,60]
[358133269,1744758089967,-246.0,0.00050852,60]
[358133270,1744758089995,-246.0,0.00050852,60]
[358133272,1744758090025,-246.0,0.00050852,60]
[358133274,1744758090059,-246.0,0.00050852,60]
[358133275,1744758090086,-246.0,0.00050852,60]
[358133277,1744758090114,-246.0,0.00050852,60]
[358133279,1744758090140,-246.0,0.00050852,60]
[358133280,1744758090167,-246.0,0.00050852,60]
[358133282,1744758090195,-246.0,0.00050852,60]
[358133284,1744758090227,-246.0,0.00050852,60]
[358133285,1744758090253,-246.0,0.00050852,60]
[358133287,1744758090279,-246.0,0.00050852,60]
[358133289,1744758090308,-246.0,0.00050852,60]
[358133291,1744758090338,-246.0,0.00050852,60]
[358133292,1744758090364,-246.0,0.00050852,60]
[358133294,1744758090392,-246.0,0.00050852,60]
[358133295,1744758090419,-246.0,0.00050852,60]
[358133297,1744758090445,-246.0,0.00050852,60]
[358133299,1744758090472,-246.0,0.00050852,60]
[358133300,1744758090498,-246.0,0.00050852,60]
[358133302,1744758090524,-246.0,0.00050852,60]
[358133304,1744758090552,-326.0,0.00050858,60]
[358133305,1744758090579,-326.0,0.00050858,60]
[358133307,1744758090606,-326.0,0.00050858,60]
[358133309,1744758090633,-326.0,0.00050858,60]
[358133310,1744758090660,-326.0,0.00050858,60]
[358133312,1744758090687,-326.0,0.00050858,60]
[358133314,1744758090714,-326.0,0.00050858,60]
[358133315,1744758090740,-326.0,0.00050858,60]
[358133317,1744758090767,-326.0,0.00050858,60]
[358133319,1744758090794,-326.0,0.00050858,60]
[358133320,1744758090821,-326.0,0.00050858,60]
[358133322,1744758090847,-326.0,0.00050858,60]
[358133324,1744758090872,-326.0,0.00050858,60]
[358133325,1744758090898,-326.0,0.00050858,60]
[358133327,1744758090926,-326.0,0.00050858,60]
[358133329,1744758090953,-326.0,0.00050858,60]
[358133330,1744758090980,-326.0,0.00050858,60]
[358133332,1744758091008,-326.0,0.00050858,60]
[358133334,1744758091035,-326.0,0.00050858,60]
[358133335,1744758091062,-326.0,0.00050858,60]
[358133337,1744758091088,-326.0,0.00050858,60]
[358133339,1744758091115,-326.0,0.00050858,60]
[358133340,1744758091142,-326.0,0.00050858,60]
[358133342,1744758091168,-326.0,0.00050858,60]
[358133344,1744758091195,-326.0,0.00050858,60]
[358133345,1744758091222,-305.77080733,0.00050861,30]
[358133347,1744758091249,-214.54507832,0.00050861,30]
[358133349,1744758091275,-423.0,0.0005088,60]
[358133350,1744758091302,-423.0,0.0005088,60]
[358133351,1744758091329,-423.0,0.0005088,60]
[358133352,1744758091359,-423.0,0.0005088,60]
[358133353,1744758091383,-423.0,0.0005088,60]
[358133354,1744758091409,-423.0,0.0005088,60]
[358133355,1744758091436,-423.0,0.0005088,60]
[358133360,1744758091602,-423.0,0.0005088,60]
[358133361,1744758091630,-423.0,0.0005088,60]
[358133363,1744758091660,-423.0,0.0005088,60]
[358133365,1744758091687,-423.0,0.0005088,60]
[358133367,1744758091715,-423.0,0.0005088,60]
[358133368,1744758091741,-423.0,0.0005088,60]
[358133370,1744758091769,-423.0,0.0005088,60]
[358133371,1744758091794,-560.0,0.00050884,60]
[358133373,1744758091820,-560.0,0.00050884,60]
[358133375,1744758091847,-560.0,0.00050884,60]
[358133376,1744758091872,-560.0,0.00050884,60]
[358133378,1744758091898,-560.0,0.00050884,60]
[358133380,1744758091926,-560.0,0.00050884,60]
[358133381,1744758091953,-560.0,0.00050884,60]
[358133383,1744758091980,-560.0,0.00050884,60]
[358133385,1744758092006,-560.0,0.00050884,60]
[358133386,1744758092033,-560.0,0.00050884,60]
[358133388,1744758092061,-560.0,0.00050884,60]
[358133390,1744758092087,-560.0,0.00050884,60]
[358133391,1744758092114,-560.0,0.00050884,60]
[358133393,1744758092141,-560.0,0.00050884,60]
[358133395,1744758092168,-150.0,0.00050885,30]
[358133396,1744758092195,-423.0,0.00050903,60]
[358133398,1744758092222,-423.0,0.00050903,60]
[358133400,1744758092248,-423.0,0.00050903,60]
[358133401,1744758092275,-423.0,0.00050903,60]
[358133403,1744758092303,-423.0,0.00050903,60]
[358133405,1744758092329,-423.0,0.00050903,60]
[358133406,1744758092361,-423.0,0.00050903,60]
[358133408,1744758092390,-423.0,0.00050903,60]
[358133410,1744758092416,-423.0,0.00050903,60]
[358133411,1744758092444,-423.0,0.00050903,60]
[358133413,1744758092472,-423.0,0.00050903,60]
[358133415,1744758092500,-560.0,0.00050908,60]
[358133416,1744758092527,-560.0,0.00050908,60]
[358133418,1744758092558,-560.0,0.00050908,60]
[358133420,1744758092586,-560.0,0.00050908,60]
[358133421,1744758092612,-560.0,0.00050908,60]
[358133423,1744758092637,-560.0,0.00050908,60]
[358133425,1744758092663,-560.0,0.00050908,60]
[358133426,1744758092689,-560.0,0.00050908,60]
[358133428,1744758092715,-560.0,0.00050908,60]
[358133430,1744758092742,-560.0,0.00050908,60]
[358133431,1744758092768,-560.0,0.00050908,60]
[358133433,1744758092794,-150.0,0.00050909,30]
[358133435,1744758092819,-305.77080733,0.00050916,30]
[358133436,1744758092845,-214.54507832,0.00050916,30]
[358133438,1744758092871,-150.0,0.00050943,30]
[358133440,1744758092897,-1124.75,0.00050958,120]
[358133441,1744758092927,-500.0,0.00050958,120]
[358133443,1744758092954,-305.77080733,0.00050971,30]
[358133445,1744758092980,-214.54507832,0.00050971,30]
[358133446,1744758093007,-150.0,0.00050985,30]
[358133448,1744758093035,-150.0,0.00050985,30]
[358133450,1744758093065,-50000.0,0.00051,51]
[358133451,1744758093097,-50000.0,0.00051,61]
[358133453,1744758093124,-2000.0,0.00051,120]
[358133455,1744758093153,-500.0,0.00051,120]
[358133456,1744758093185,-1000000.0,0.00051,120]
[358133458,1744758093216,-1000000.0,0.00051,120]
[358133460,1744758093246,-1000000.0,0.00051,120]
[358133461,1744758093276,-1000000.0,0.00051,120]
[358133463,1744758093306,-392069.22027418,0.00051,120]
[358133595,1744758099173,-500.0,0.0004726,120]
[358133596,1744758099203,-500.0,0.00047808,120]
[358133598,1744758099230,-500.0,0.00048356,120]
[358133600,1744758099258,-500.0,0.00048904,120]
[358133601,1744758099286,-500.0,0.00049452,120]
[358133603,1744758099312,-500.0,0.0005,120]
[358133605,1744758099341,-150.0,0.00050452,30]
[358133606,1744758099367,-500.0,0.00050548,120]
[358133608,1744758099396,-607930.77972582,0.00051,120]
[358133610,1744758099422,-151.0,0.00051,106]
[358133611,1744758099448,-150.0,0.00051,51]
[358133613,1744758099474,-150.0,0.00051001,30]
[358133614,1744758099501,-305.77080733,0.00051027,30]
[358133616,1744758099528,-214.54507832,0.00051027,30]
[358133618,1744758099554,-150.0,0.0005106,30]
[358133619,1744758099581,-150.0,0.00051061,30]
[358133621,1744758099608,-305.77080733,0.00051082,30]
[358133623,1744758099635,-214.54507832,0.00051082,30]
[358133624,1744758099662,-500.0,0.00051096,120]
[358133626,1744758099688,-150.0,0.00051118,30]
[358133628,1744758099715,-150.0,0.00051135,120]
[358133629,1744758099742,-305.77080733,0.00051137,30]
[358133630,1744758099770,-214.54507832,0.00051137,30]
[358133631,1744758099797,-150.0,0.00051137,30]
[358133632,1744758099824,-150.0,0.00051137,30]
[358133633,1744758099850,-150.0,0.00051176,30]
[358133634,1744758099877,-305.77080733,0.00051193,30]
[358133635,1744758099904,-214.54507832,0.00051193,30]
[358133637,1744758099933,-150.0,0.00051213,30]
[358133638,1744758099961,-150.0,0.00051215,120]
[358133640,1744758099989,-208.0,0.0005123,30]
[358133641,1744758100017,-259.0,0.0005123,30]
[358133643,1744758100043,-209.0,0.0005123,30]
[358133645,1744758100068,-224.0,0.0005123,30]
[358133646,1744758100096,-223.0,0.0005123,30]
[358133648,1744758100123,-1124.75,0.00051232,120]
[358133650,1744758100151,-179.43888605,0.00051232,120]
[358133651,1744758100177,-150.0,0.00051234,30]
[358133653,1744758100203,-305.77080733,0.00051248,30]
[358133655,1744758100230,-214.54507832,0.00051248,30]
[358133656,1744758100257,-150.0,0.0005129,30]
[358133658,1744758100283,-150.0,0.0005129,30]
[358133660,1744758100310,-150.0,0.00051293,30]
[358133661,1744758100338,-305.77080733,0.00051303,30]
[358133663,1744758100365,-214.54507832,0.00051303,30]
[358133664,1744758100392,-150.0,0.00051351,30]
[358133666,1744758100420,-305.77080733,0.00051359,30]
[358133668,1744758100447,-214.54507832,0.00051359,30]
[358133669,1744758100472,-150.0,0.00051366,30]
[358133671,1744758100499,-2213.58903904,0.000514,120]
[358133673,1744758100526,-150.0,0.00051409,30]
[358133674,1744758100553,-305.77080733,0.00051414,30]
[358133676,1744758100580,-214.54507832,0.00051414,30]
[358133677,1744758100606,-500.0,0.00051424,30]
[358133679,1744758100633,-3000.0,0.0005144,31]
[358133681,1744758100660,-150.0,0.00051442,30]
[358133682,1744758100687,-150.0,0.00051442,30]
[358133684,1744758100716,-150.0,0.00051468,30]
[358133686,1744758100744,-305.77080733,0.00051469,30]
[358133687,1744758100772,-214.54507832,0.00051469,30]
[358133689,1744758100802,-1000000.0,0.000515,120]
[358133691,1744758100831,-1000000.0,0.000515,120]
[358133692,1744758100861,-1000000.0,0.000515,120]
[358133694,1744758100888,-1124.75,0.00051506,120]
[358133696,1744758100917,-150.0,0.00051518,30]
[358133697,1744758100946,-150.0,0.00051524,120]
[358133699,1744758100973,-305.77080733,0.00051525,30]
[358133701,1744758101000,-214.54507832,0.00051525,30]
[358133702,1744758101028,-150.0,0.00051526,30]
[358133704,1744758101057,-305.77080733,0.0005158,30]
[358133706,1744758101086,-214.54507832,0.0005158,30]
[358133707,1744758101113,-150.0,0.00051584,30]
[358133709,1744758101140,-150.0,0.00051594,30]
[358133711,1744758101166,-150.0,0.00051594,30]
[358133712,1744758101192,-305.77080733,0.00051635,30]
[358133714,1744758101218,-214.54507832,0.00051635,30]
[358133716,1744758101244,-150.0,0.00051642,30]
[358133717,1744758101269,-150.0,0.0005167,30]
[358133719,1744758101296,-305.77080733,0.00051691,30]
[358133721,1744758101323,-214.54507832,0.00051691,30]
[358133722,1744758101353,-150.0,0.00051701,30]
[358133724,1744758101379,-305.77080733,0.00051746,30]
[358133726,1744758101404,-214.54507832,0.00051746,30]
[358133727,1744758101430,-150.0,0.00051746,30]
[358133729,1744758101454,-150.0,0.00051746,30]
[358133731,1744758101480,-150.0,0.00051759,30]
[358133732,1744758101507,-1124.75,0.0005178,120]
[358133734,1744758101533,-223.04915,0.000518,120]
[358133736,1744758101559,-305.77080733,0.00051801,30]
[358133737,1744758101585,-214.54507832,0.00051801,30]
[358133739,1744758101610,-150.0,0.00051817,30]
[358133741,1744758101635,-150.0,0.00051822,30]
[358133742,1744758101661,-150.0,0.0005183,120]
[358133744,1744758101687,-305.77080733,0.00051857,30]
[358133746,1744758101714,-214.54507832,0.00051857,30]
[358133747,1744758101739,-150.0,0.00051876,30]
[358133749,1744758101767,-666.04,0.00051877,120]
[358133751,1744758101792,-150.0,0.00051898,30]
[358133752,1744758101817,-150.0,0.00051898,30]
[358133754,1744758101843,-305.77080733,0.00051912,30]
[358133755,1744758101868,-214.54507832,0.00051912,30]
[358133757,1744758101894,-150.0,0.00051934,30]
[358133759,1744758101924,-150.0,0.00051956,120]
[358133760,1744758101950,-305.77080733,0.00051967,30]
[358133765,1744758102106,-214.54507832,0.00051967,30]
[358133767,1744758102132,-150.0,0.00051974,30]
[358133769,1744758102160,-940.74529843,0.00051988,120]
[358133770,1744758102186,-941.30236729,0.0005199,60]
[358133772,1744758102211,-2597.32172463,0.0005199,60]
[358133774,1744758102238,-150.0,0.00051992,30]
[358133775,1744758102264,-1000.0,0.00051993,30]
[358133777,1744758102290,-1000.0,0.00051999,120]
[358133779,1744758102320,-50000.0,0.00052,52]
[358133780,1744758102351,-50000.0,0.00052,62]
[358133782,1744758102380,-770.08716838,0.00052,30]
[358133784,1744758102406,-1000.0,0.00052,120]
[358133785,1744758102434,-468.46932045,0.00052,120]
[358133787,1744758102461,-1331.08011318,0.00052,120]
[358133789,1744758102488,-12626.0,0.00052,120]
[358133790,1744758102514,-2000.0,0.00052,120]
[358133792,1744758102540,-1000.0,0.00052,120]
[358133794,1744758102565,-541492.47703339,0.00052,120]
[358133795,1744758102593,-1488.0,0.00052,120]
[358133797,1744758102619,-500.0,0.00052,120]
[358133799,1744758102649,-400.0,0.00052,120]
[358133800,1744758102679,-691117.68423164,0.00052,120]
[358133828,1744758103867,551.81,0.0001711,2]
[358133911,1744758107414,-153.0,0.00047418,60]
[358133913,1744758107443,-153.0,0.00047418,60]
[358133915,1744758107470,-153.0,0.00047418,60]
[358133916,1744758107497,-153.0,0.00047418,60]
[358133918,1744758107524,-153.0,0.00047418,60]
[358133919,1744758107553,-153.0,0.00047418,60]
[358133921,1744758107580,-153.0,0.00047418,60]
[358133923,1744758107607,-153.0,0.00047418,60]
[358133924,1744758107634,-153.0,0.00047418,60]
[358133926,1744758107663,-153.0,0.00047418,60]
[358133927,1744758107691,-153.0,0.00047418,60]
[358133929,1744758107720,-153.0,0.00047418,60]
[358133931,1744758107751,-150.0,0.00051176,30]
[358133932,1744758107779,-500.0,0.00051644,120]
[358133934,1744758107811,-308882.31576836,0.00052,120]
[358133936,1744758107842,-1000000.0,0.00052,120]
[358133938,1744758107872,-1000000.0,0.00052,120]
[358133939,1744758107902,-1000000.0,0.00052,120]
[358133941,1744758107934,-1000000.0,0.00052,120]
[358133943,1744758107965,-688631.68423164,0.00052,120]
[358134029,1744758111800,-153.0,0.00047418,60]
[358134030,1744758111830,-153.0,0.00047418,60]
[358134032,1744758111860,-153.0,0.00047418,60]
[358134034,1744758111888,-153.0,0.00047418,60]
[358134035,1744758111917,-153.0,0.00047418,60]
[358134037,1744758111948,-153.0,0.00047418,60]
[358134039,1744758111978,-153.0,0.00047418,60]
[358134040,1744758112008,-153.0,0.00047418,60]
[358134042,1744758112037,-153.0,0.00047418,60]
[358134044,1744758112069,-153.0,0.00047418,60]
[358134045,1744758112098,-153.0,0.00047418,60]
[358134047,1744758112128,-153.0,0.00047418,60]
[358134051,1744758112158,-153.0,0.00047418,60]
[358134052,1744758112381,-153.0,0.00047418,60]
[358134053,1744758112409,-153.0,0.00047418,60]
[358134055,1744758112438,-153.0,0.00047418,60]
[358134056,1744758112465,-153.0,0.00047418,60]
[358134058,1744758112493,-153.0,0.00047418,60]
[358134060,1744758112524,-150.0,0.00051359,30]
[358134061,1744758112553,-311368.31576836,0.00052,120]
[358134063,1744758112583,-1000000.0,0.00052,120]
[358134065,1744758112609,-50000.0,0.00052,50]
[358134066,1744758112635,-20555.0,0.00052,120]
[358134068,1744758112662,-1702933.5333686,0.00052,120]
[358134070,1744758112688,-151.0,0.00052,107]
[358134071,1744758112715,-150.0,0.00052,30]
[358134073,1744758112742,-305.77080733,0.00052023,30]
[358134075,1744758112769,-214.54507832,0.00052023,30]
[358134076,1744758112801,-500.0,0.00052027,120]
[358134078,1744758112829,-535.0,0.00052027,120]
[358134080,1744758112856,-150.0,0.00052051,30]
[358134082,1744758112884,-150.0,0.00052051,30]
[358134083,1744758112911,-150.0,0.00052051,30]
[358134085,1744758112947,-1124.75,0.00052054,120]
[358134087,1744758112973,-1068.0,0.00052055,30]
[358134088,1744758113001,-305.77080733,0.00052078,30]
[358134090,1744758113028,-214.54507832,0.00052078,30]
[358134091,1744758113056,-150.0,0.00052109,30]
[358134093,1744758113083,-150.0,0.00052127,30]
[358134095,1744758113110,-305.77080733,0.00052134,30]
[358134096,1744758113137,-214.54507832,0.00052134,30]
[358134098,1744758113166,-150.0,0.00052145,120]
[358134100,1744758113192,-150.0,0.00052167,30]
[358134101,1744758113220,-305.77080733,0.00052189,30]
[358134103,1744758113247,-214.54507832,0.00052189,30]
[358134105,1744758113276,-500.0,0.00052192,120]
[358134106,1744758113305,-906.36197109,0.000522,60]
[358134108,1744758113332,-644.79446246,0.000522,60]
[358134110,1744758113363,-150.0,0.00052203,30]
[358134111,1744758113390,-150.0,0.00052203,30]
[358134113,1744758113416,-223590.39,0.0005222,30]
[358134115,1744758113443,-150.0,0.00052225,30]
[358134116,1744758113470,-305.77080733,0.00052244,30]
[358134118,1744758113497,-214.54507832,0.00052244,30]
[358134120,1744758113525,-150.0,0.00052254,120]
[358134121,1744758113554,-150.0,0.00052279,30]
[358134123,1744758113582,-150.0,0.00052284,30]
[358134124,1744758113609,-305.77080733,0.000523,30]
[358134126,1744758113636,-214.54507832,0.000523,30]
[358134128,1744758113664,-1124.75,0.00052328,120]
[358134129,1744758113693,-150.0,0.00052342,30]
[358134131,1744758113723,-305.77080733,0.00052355,30]
[358134133,1744758113752,-214.54507832,0.00052355,30]
[358134134,1744758113780,-150.0,0.00052355,30]
[358134136,1744758113808,-150.0,0.00052355,30]
[358134138,1744758113836,-1250.0,0.00052356,120]
[358134139,1744758113864,-1250.0,0.00052356,120]
[358134141,1744758113892,-1250.0,0.00052356,120]
[358134143,1744758113921,-1250.0,0.00052356,120]
[358134144,1744758113950,-1250.0,0.00052356,120]
[358134146,1744758113978,-1250.0,0.00052356,120]
[358134147,1744758114007,-1250.0,0.00052356,120]
[358134149,1744758114036,-1250.0,0.00052356,120]
[358134151,1744758114064,-1250.0,0.00052356,120]
[358134152,1744758114092,-1250.0,0.00052356,120]
[358134154,1744758114120,-1250.0,0.00052356,120]
[358134156,1744758114147,-1250.0,0.00052356,120]
[358134157,1744758114175,-1250.0,0.00052356,120]
[358134159,1744758114203,-1250.0,0.00052356,120]
[358134161,1744758114230,-1250.0,0.00052356,120]
[358134162,1744758114257,-1250.0,0.00052356,120]
[358134164,1744758114285,-1250.0,0.00052356,120]
[358134165,1744758114313,-1250.0,0.00052356,120]
[358134167,1744758114347,-1250.0,0.00052356,120]
[358134169,1744758114375,-1250.0,0.00052356,120]
[358134170,1744758114405,-1250.0,0.00052356,120]
[358134172,1744758114436,-1250.0,0.00052356,120]
[358134174,1744758114464,-1250.0,0.00052356,120]
[358134175,1744758114492,-1250.0,0.00052356,120]
[358134177,1744758114522,-621.78829552,0.00052375,30]
[358134179,1744758114549,-1438.31935141,0.000524,120]
[358134180,1744758114578,-150.0,0.000524,30]
[358134182,1744758114607,-305.77080733,0.0005241,30]
[358134184,1744758114635,-214.54507832,0.0005241,30]
[358134185,1744758114664,-150.0,0.00052431,30]
[358134187,1744758114692,-3000.0,0.0005244,31]